bitfinex/quotes_BTCUSD_20240719
["timestamp","ask_amount","ask_price","bid_price","bid_amount"]
[1721396402638,0.15881174,64834.0,64833.0,0.12806294]
[1721396402896,0.15881174,64834.0,64819.0,0.00018571]
[1721396402897,0.18756062,64834.0,64819.0,0.00018571]
[1721396403152,0.16925662,64833.0,64820.0,0.66833556]
[1721396403377,0.06789641,64834.0,64827.0,0.07717479]
[1721396403378,0.00243,64834.0,64827.0,0.07717479]
[1721396403638,0.00243,64834.0,64833.0,0.462726]
[1721396403864,0.00243,64834.0,64833.0,0.89931838]
[1721396404533,0.00243,64834.0,64833.0,0.28235038]
[1721396404754,0.00243,64834.0,64833.0,0.59083438]
[1721396404755,0.00343,64834.0,64833.0,0.59083438]
[1721396404973,0.00343,64834.0,64833.0,0.2823264]
[1721396405191,0.00343,64834.0,64833.0,0.5908104]
[1721396405622,0.00343,64834.0,64833.0,0.8992944]
[1721396405869,0.00343,64834.0,64833.0,0.5908104]
[1721396406111,0.00243,64834.0,64833.0,0.59080259]
[1721396406569,0.00243,64834.0,64833.0,1.52655098]
[1721396406570,0.00643,64834.0,64833.0,1.52655098]
[1721396406783,0.00643,64834.0,64833.0,1.70036906]
[1721396406998,0.00643,64834.0,64833.0,1.50825233]
[1721396407216,0.00643,64834.0,64833.0,1.5265498]
[1721396407422,0.00643,64834.0,64833.0,1.37216806]
[1721396407636,0.00643,64834.0,64833.0,0.91849706]
[1721396407637,0.00843,64834.0,64833.0,0.91849706]
[1721396407847,0.00843,64834.0,64833.0,0.59171559]
[1721396408069,0.00243,64834.0,64833.0,0.90019959]
[1721396408279,0.00243,64834.0,64833.0,1.20868359]
[1721396408501,0.00243,64834.0,64833.0,0.28323159]
[1721396408716,0.00243,64834.0,64833.0,0.000913]
[1721396408934,0.37305174,64834.0,64833.0,0.000913]
[1721396409140,0.73340158,64834.0,64833.0,0.000913]
[1721396409574,0.79995847,64834.0,64833.0,0.000913]
[1721396409781,1.17750455,64834.0,64833.0,0.000913]
[1721396409992,1.17750455,64834.0,64819.0,0.00018571]
[1721396409993,0.154264,64824.0,64819.0,0.00018571]
[1721396410202,0.16894641,64823.0,64819.0,0.00018571]
[1721396410412,0.01456467,64822.0,64819.0,0.00018571]
[1721396410632,0.04605705,64826.0,64819.0,0.00018571]
[1721396410633,0.16894641,64821.0,64819.0,0.00018571]
[1721396410850,0.01456467,64820.0,64819.0,0.00018571]
[1721396411307,0.01456467,64820.0,64819.0,0.15446071]
[1721396411522,0.15438174,64821.0,64819.0,0.00018571]
[1721396412240,0.00480473,64820.0,64819.0,0.00018571]
[1721396412450,0.15918647,64820.0,64819.0,0.00018571]
[1721396414162,0.99251749,64820.0,64819.0,0.00018571]
[1721396414366,1.38971368,64820.0,64819.0,0.00018571]
[1721396414577,1.26972125,64820.0,64819.0,0.00018571]
[1721396414785,1.2789253,64820.0,64819.0,0.00018571]
[1721396415001,1.37102081,64820.0,64819.0,0.00018571]
[1721396415217,1.44346723,64820.0,64819.0,0.00018571]
[1721396415439,1.37326406,64820.0,64819.0,0.00018571]
[1721396415653,1.30081998,64820.0,64819.0,0.00018571]
[1721396416083,1.24589015,64820.0,64819.0,0.00018571]
[1721396416273,1.3838039,64820.0,64819.0,0.00018571]
[1721396416523,1.24249169,64820.0,64819.0,0.00018571]
[1721396417395,1.60061523,64820.0,64819.0,0.00018571]
[1721396417607,1.29002017,64820.0,64819.0,0.00018571]
[1721396417828,1.75291574,64820.0,64819.0,0.00018571]
[1721396418046,1.62054805,64820.0,64819.0,0.00018571]
[1721396418494,0.93394596,64820.0,64819.0,0.00018571]
[1721396418715,0.02280599,64820.0,64819.0,0.00018571]
[1721396418944,0.018,64820.0,64819.0,0.77156271]
[1721396419160,0.018,64820.0,64819.0,1.08011371]
[1721396419836,0.018,64820.0,64819.0,1.54304645]
[1721396420046,0.018,64820.0,64819.0,0.91346271]
[1721396420478,0.018,64820.0,64819.0,0.00018571]
[1721396420695,0.17238174,64820.0,64819.0,0.00018571]
[1721396421558,0.15438174,64820.0,64819.0,0.00018571]
[1721396422606,0.16638174,64820.0,64819.0,0.00018571]
[1721396422827,0.15438174,64820.0,64819.0,0.00018571]
[1721396423283,0.27753,64834.0,64819.0,0.00018571]
[1721396423517,0.04597712,64829.0,64820.0,0.07717479]
[1721396423751,0.00480505,64828.0,64827.0,0.23143079]
[1721396423967,0.00243,64834.0,64827.0,0.23143079]
[1721396423968,0.00243,64834.0,64829.0,0.154251]
[1721396424172,0.00243,64834.0,64827.0,0.38568779]
[1721396424173,0.15681174,64834.0,64827.0,0.07717479]
[1721396424851,0.014,64829.0,64820.0,0.07717479]
[1721396425072,0.15438174,64828.0,64819.0,0.00018571]
[1721396425287,0.00480452,64827.0,64819.0,0.00018571]
[1721396425501,0.154263,64825.0,64819.0,0.00018571]
[1721396425711,0.154266,64823.0,64819.0,0.00018571]
[1721396425892,0.15918672,64822.0,64819.0,0.00018571]
[1721396426161,0.15438174,64822.0,64819.0,0.00018571]
[1721396426586,0.00480503,64821.0,64819.0,0.00018571]
[1721396426798,0.013,64829.0,64820.0,0.07717479]
[1721396427008,0.00480457,64828.0,64820.0,0.07717479]
[1721396427235,0.00480454,64828.0,64821.0,0.15427]
[1721396427467,0.00480454,64828.0,64820.0,0.07717479]
[1721396427468,0.16738174,64829.0,64820.0,0.07717479]
[1721396427906,0.16738174,64829.0,64824.0,0.154263]
[1721396428130,0.16738174,64829.0,64828.0,0.23142879]
[1721396428131,0.013,64829.0,64828.0,0.23142879]
[1721396428553,0.013,64829.0,64827.0,0.154256]
[1721396428795,0.013,64829.0,64820.0,0.154272]
[1721396428796,0.014,64825.0,64820.0,0.154272]
[1721396429020,0.014,64825.0,64819.0,0.00018571]
[1721396429021,0.15438174,64829.0,64819.0,0.2316345]
[1721396429240,0.15438174,64829.0,64820.0,0.308545]
[1721396429454,0.15438174,64829.0,64820.0,0.311339]
[1721396429455,0.16838174,64829.0,64820.0,0.311339]
[1721396429662,0.15438174,64828.0,64819.0,0.0773605]
[1721396430089,0.014,64829.0,64826.0,0.07717479]
[1721396430301,0.014,64829.0,64826.0,0.23143179]
[1721396430527,0.00243,64834.0,64819.0,0.00018571]
[1721396430528,0.308519,64826.0,64819.0,0.00018571]
[1721396430749,0.15438174,64825.0,64819.0,0.00018571]
[1721396430994,0.154265,64824.0,64819.0,0.00018571]
[1721396431210,0.05180046,64827.0,64819.0,0.00018571]
[1721396431211,0.15438174,64823.0,64819.0,0.00018571]
[1721396431483,0.09200092,64833.0,64813.0,0.8488005]
[1721396431484,0.00243,64834.0,64821.0,0.07717479]
[1721396431691,0.00243,64834.0,64833.0,0.23141679]
[1721396431901,0.00243,64834.0,64833.0,0.22741679]
[1721396432114,0.00243,64834.0,64833.0,0.23963414]
[1721396432739,0.00243,64834.0,64833.0,0.08939214]
[1721396432945,0.00243,64834.0,64833.0,0.01221735]
[1721396433364,0.15681174,64834.0,64824.0,0.154262]
[1721396433571,0.15681174,64834.0,64833.0,0.01221735]
[1721396433572,0.00243,64834.0,64833.0,0.01221735]
[1721396433783,0.00243,64834.0,64828.0,0.07717479]
[1721396433999,0.00943,64834.0,64833.0,0.01321735]
[1721396434228,0.1437844,64857.0,64833.0,0.01321735]
[1721396434229,0.0058,64866.0,64852.0,0.154197]
[1721396434442,0.0058,64866.0,64852.0,0.770985]
[1721396434648,0.0058,64866.0,64852.0,0.78307132]
[1721396434858,0.0459948,64871.0,64852.0,0.78307132]
[1721396434859,0.04597125,64871.0,64852.0,0.78307132]
[1721396435075,0.05177125,64872.0,64852.0,0.92027132]
[1721396435341,0.0058,64872.0,64852.0,0.92027132]
[1721396435559,0.15521174,64853.0,64852.0,0.01208632]
[1721396435983,0.15521174,64853.0,64852.0,0.154197]
[1721396435984,0.00083,64853.0,64852.0,0.154197]
[1721396436198,0.15521174,64853.0,64852.0,0.01205397]
[1721396436642,0.15521174,64853.0,64845.0,0.0612]
[1721396436867,0.15521174,64853.0,64852.0,0.01205397]
[1721396437077,0.00083,64853.0,64852.0,0.154197]
[1721396437299,0.00583,64853.0,64852.0,0.47464497]
[1721396437516,0.00583,64853.0,64852.0,1.09143297]
[1721396437731,0.00583,64853.0,64852.0,0.16625097]
[1721396437944,0.05175008,64872.0,64852.0,0.16625097]
[1721396437945,0.04595083,64872.0,64868.0,0.07717479]
[1721396438154,0.15438174,64871.0,64861.0,0.07717479]
[1721396438367,0.15438174,64871.0,64864.0,0.07717479]
[1721396438368,0.15438174,64866.0,64864.0,0.07717479]
[1721396438606,0.15438174,64866.0,64865.0,0.07717479]
[1721396440956,0.15838174,64866.0,64865.0,0.07817479]
[1721396441164,0.15838174,64866.0,64865.0,0.09016837]
[1721396441689,0.004,64866.0,64865.0,0.09016837]
[1721396442115,0.004,64866.0,64865.0,0.24433437]
[1721396442325,0.3945,64877.0,64865.0,0.08916837]
[1721396442544,0.15438174,64876.0,64872.0,0.07717479]
[1721396443415,0.3945,64877.0,64872.0,0.07717479]
[1721396443632,0.04593597,64888.0,64878.0,0.154133]
[1721396443840,0.00835,64899.0,64878.0,0.154133]
[1721396443841,0.15438174,64887.0,64884.0,0.07717479]
[1721396444287,0.15438174,64887.0,64885.0,0.01465556]
[1721396445427,0.011,64887.0,64885.0,0.01465556]
[1721396446720,0.15438174,64886.0,64885.0,0.01565556]
[1721396447225,0.15438174,64886.0,64885.0,0.01286156]
[1721396447466,0.2921,64887.0,64885.0,0.01286156]
[1721396447467,0.017,64887.0,64885.0,0.01286156]
[1721396447695,0.017,64887.0,64885.0,0.155116]
[1721396447932,0.017,64887.0,64886.0,0.01185692]
[1721396448205,0.017,64887.0,64886.0,0.22597292]
[1721396448436,0.017,64887.0,64886.0,0.07185692]
[1721396448668,0.00835,64899.0,64886.0,0.07185692]
[1721396448912,0.154091,64897.0,64892.0,0.07717479]
[1721396449158,0.15438174,64896.0,64892.0,0.07717479]
[1721396449657,0.30847474,64896.0,64892.0,0.07717479]
[1721396449896,0.154095,64895.0,64886.0,0.06]
[1721396450152,0.15438174,64894.0,64887.0,0.07717479]
[1721396450394,0.15438174,64894.0,64887.0,0.24304155]
[1721396450673,0.15438174,64894.0,64889.0,0.154108]
[1721396450904,0.2751,64902.0,64887.0,0.08892855]
[1721396450905,0.04578581,64925.0,64911.0,0.308113]
[1721396451138,0.04578581,64925.0,64892.0,0.2751]
[1721396451139,0.11446453,64930.0,64892.0,0.2751]
[1721396451141,0.06858171,64958.0,64912.0,0.10414]
[1721396451355,0.11486653,64964.0,64916.0,0.2751]
[1721396451356,0.2751,64963.0,64916.0,0.2751]
[1721396451642,0.2751,64963.0,64917.0,0.15211898]
[1721396451891,0.000402,64964.0,64923.0,0.1228]
[1721396451892,0.2751,64955.0,64923.0,0.1228]
[1721396452097,0.000402,64964.0,64923.0,0.1228]
[1721396452098,0.000402,64964.0,64924.0,0.002794]
[1721396452099,0.2751,64945.0,64924.0,0.002794]
[1721396452315,0.17965839,64954.0,64927.0,0.46304871]
[1721396452316,0.140194,64944.0,64927.0,0.46304871]
[1721396452531,0.140194,64944.0,64924.0,0.00955634]
[1721396452532,0.154023,64925.0,64924.0,0.00955634]
[1721396452750,0.154023,64925.0,64911.0,0.001]
[1721396452751,0.154014,64929.0,64928.0,0.00943997]
[1721396452964,0.002794,64942.0,64916.0,0.001]
[1721396453185,0.002794,64942.0,64923.0,0.154028]
[1721396453186,0.153993,64938.0,64923.0,0.154028]
[1721396453395,0.1374,64944.0,64916.0,0.001]
[1721396453396,0.002794,64937.0,64916.0,0.001]
[1721396453602,0.4125,64944.0,64916.0,0.001]
[1721396453603,0.102794,64943.0,64916.0,0.001]
[1721396453841,0.002794,64943.0,64917.0,0.00949198]
[1721396454061,0.0614,64952.0,64898.0,0.07717479]
[1721396454062,0.15438174,64932.0,64918.0,0.5402235]
[1721396454275,0.15438174,64942.0,64911.0,0.46304871]
[1721396454559,0.154031,64922.0,64919.0,0.00950794]
[1721396454769,0.002794,64941.0,64916.0,0.308089]
[1721396454770,0.2751,64939.0,64916.0,0.308089]
[1721396454987,0.15401,64931.0,64917.0,0.154042]
[1721396455202,0.15717574,64930.0,64924.0,0.001]
[1721396455609,0.15717574,64930.0,64918.0,0.15404]
[1721396455865,0.15717574,64930.0,64919.0,0.00901596]
[1721396456086,0.18829411,64930.0,64919.0,0.00901596]
[1721396456294,0.18829411,64930.0,64919.0,0.01009342]
[1721396456295,0.154017,64928.0,64919.0,0.01009342]
[1721396456515,0.002794,64927.0,64924.0,0.001]
[1721396456731,0.14322757,64938.0,64924.0,0.001]
[1721396456732,0.15438174,64928.0,64924.0,0.001]
[1721396456944,0.002794,64927.0,64925.0,0.01009017]
[1721396457166,0.17009931,64926.0,64919.0,0.001]
[1721396457386,0.002794,64925.0,64919.0,0.001]
[1721396457621,0.770177,64920.0,64919.0,0.001]
[1721396457841,0.94755874,64920.0,64919.0,0.001]
[1721396458064,1.04755874,64920.0,64919.0,0.001]
[1721396458297,1.20190831,64920.0,64919.0,0.001]
[1721396458506,1.04755874,64920.0,64919.0,0.001]
[1721396458714,0.154045,64916.0,64905.0,0.07717479]
[1721396458934,0.154042,64918.0,64905.0,0.07717479]
[1721396459147,0.15438174,64917.0,64906.0,0.01022232]
[1721396459363,0.15438174,64917.0,64912.0,0.07717479]
[1721396459793,0.002794,64925.0,64912.0,0.23122879]
[1721396460001,0.308031,64929.0,64912.0,0.07717479]
[1721396460002,0.15438174,64924.0,64912.0,0.07717479]
[1721396460222,0.308083,64918.0,64905.0,0.07817479]
[1721396460443,0.42948174,64917.0,64905.0,0.07817479]
[1721396460657,0.15438174,64917.0,64912.0,0.07717479]
[1721396461115,0.15438174,64917.0,64905.0,0.07817479]
[1721396461116,0.154055,64912.0,64905.0,0.07817479]
[1721396461329,0.102794,64932.0,64905.0,0.07717479]
[1721396461330,0.154061,64910.0,64905.0,0.07717479]
[1721396461570,0.002794,64931.0,64905.0,0.07717479]
[1721396461571,0.154034,64921.0,64905.0,0.07717479]
[1721396461783,0.15402,64927.0,64920.0,0.07717479]
[1721396461992,0.15717574,64926.0,64920.0,0.07717479]
[1721396462270,0.15438174,64926.0,64921.0,0.07717479]
[1721396462482,0.002794,64925.0,64921.0,0.07717479]
[1721396462688,0.15403,64922.0,64921.0,0.07717479]
[1721396462902,0.30841174,64922.0,64921.0,0.07717479]
[1721396463121,0.30841174,64922.0,64913.0,0.07717479]
[1721396463122,0.46244374,64922.0,64913.0,0.07717479]
[1721396463341,0.15438174,64921.0,64913.0,0.07717479]
[1721396463565,0.61648074,64921.0,64920.0,0.001]
[1721396463995,0.87454674,64921.0,64920.0,0.001]
[1721396464435,0.87454674,64921.0,64913.0,0.07717479]
[1721396464436,0.154043,64917.0,64913.0,0.07717479]
[1721396464663,0.72051374,64921.0,64913.0,0.07717479]
[1721396464664,0.30842774,64916.0,64913.0,0.07717479]
[1721396465142,0.308067,64921.0,64913.0,0.07717479]
[1721396465398,0.154038,64919.0,64913.0,0.07717479]
[1721396465616,0.014,64922.0,64920.0,0.07717479]
[1721396466084,0.014,64922.0,64921.0,0.01015481]
[1721396466327,0.308035,64928.0,64921.0,0.0873296]
[1721396466573,0.154021,64926.0,64921.0,0.0873296]
[1721396466820,0.15717574,64925.0,64921.0,0.07717479]
[1721396467326,0.15717574,64925.0,64913.0,0.07817479]
[1721396467327,0.308066,64921.0,64913.0,0.07817479]
[1721396467564,0.007,64922.0,64901.0,0.32642049]
[1721396467565,0.308099,64914.0,64908.0,0.07717479]
[1721396467805,0.30843374,64913.0,64908.0,0.07717479]
[1721396468037,0.15438174,64913.0,64908.0,0.07717479]
[1721396468488,0.007,64922.0,64921.0,0.001]
[1721396468489,0.469091,64922.0,64921.0,0.001]
[1721396468707,0.31541174,64922.0,64921.0,0.001]
[1721396468912,0.16138174,64922.0,64921.0,0.001]
[1721396469159,0.31541174,64922.0,64921.0,0.001]
[1721396469597,0.93153374,64922.0,64921.0,0.001]
[1721396470072,0.93153374,64922.0,64908.0,0.07717479]
[1721396470073,0.154047,64916.0,64908.0,0.07717479]
[1721396470287,0.154053,64913.0,64908.0,0.07717479]
[1721396470499,0.30842974,64915.0,64908.0,0.07717479]
[1721396470710,0.30807,64921.0,64908.0,0.07717479]
[1721396470711,0.15438174,64912.0,64909.0,0.12795644]
[1721396470924,0.15438174,64912.0,64908.0,0.07717479]
[1721396470925,0.30843674,64912.0,64908.0,0.07717479]
[1721396471133,0.154058,64911.0,64910.0,0.01026788]
[1721396471342,0.15438174,64912.0,64908.0,0.07717479]
[1721396471343,0.154059,64910.0,64908.0,0.07717479]
[1721396471548,0.154061,64909.0,64908.0,0.07717479]
[1721396471765,0.30844074,64910.0,64908.0,0.20513061]
[1721396471984,0.154061,64909.0,64908.0,0.07717479]
[1721396472208,0.154061,64909.0,64908.0,0.07817479]
[1721396472445,0.30844074,64910.0,64908.0,0.07817479]
[1721396472868,0.313105,64913.0,64908.0,0.07817479]
[1721396472869,0.005,64913.0,64908.0,0.07817479]
[1721396473098,0.005,64913.0,64912.0,0.154054]
[1721396473319,0.0062779,64957.0,64912.0,0.154054]
[1721396473320,0.307921,64952.0,64918.0,0.308079]
[1721396473571,0.002794,64951.0,64948.0,0.07717479]
[1721396473844,0.0034839,64957.0,64949.0,0.12795888]
[1721396474068,0.0034839,64957.0,64948.0,0.07717479]
[1721396474069,0.0034839,64957.0,64956.0,0.23112479]
[1721396474279,0.0034839,64957.0,64956.0,0.35908367]
[1721396474488,0.0034839,64957.0,64956.0,0.66698367]
[1721396474700,0.0034839,64957.0,64956.0,1.46301498]
[1721396474909,0.0034839,64957.0,64956.0,1.77091498]
[1721396475122,0.008742,64964.0,64963.0,0.4618]
[1721396475335,0.008742,64964.0,64963.0,1.39058132]
[1721396475828,0.008742,64964.0,64963.0,1.69844832]
[1721396476304,0.002,64969.0,64968.0,0.461764]
[1721396476570,0.002,64969.0,64968.0,0.58957703]
[1721396476806,0.002,64969.0,64968.0,0.12781303]
[1721396477021,0.002,64969.0,64968.0,0.10384809]
[1721396477022,0.15638174,64969.0,64968.0,0.10384809]
[1721396477241,0.15638174,64969.0,64956.0,0.0635]
[1721396477449,0.15717574,64968.0,64956.0,0.0635]
[1721396477651,0.15717574,64968.0,64956.0,0.5402235]
[1721396477652,0.15438174,64968.0,64956.0,0.5402235]
[1721396477914,0.002,64969.0,64964.0,0.07717479]
[1721396478124,0.002,64969.0,64965.0,0.307858]
[1721396478334,0.002,64969.0,64957.0,0.01820992]
[1721396478335,0.15438174,64968.0,64957.0,0.01820992]
[1721396478547,0.15438174,64968.0,64948.0,0.09538471]
[1721396478548,0.01559817,64967.0,64948.0,0.09538471]
[1721396478753,0.01559817,64967.0,64956.0,0.001]
[1721396478754,0.307874,64962.0,64956.0,0.001]
[1721396478958,0.15438174,64967.0,64956.0,0.001]
[1721396479164,0.0016,64969.0,64956.0,0.001]
[1721396479380,0.002794,64968.0,64956.0,0.001]
[1721396479587,0.15438174,64967.0,64962.0,0.07717479]
[1721396479998,0.15438174,64967.0,64956.0,0.001]
[1721396480209,0.15438174,64967.0,64948.0,0.07717479]
[1721396480421,0.00083,64968.0,64964.0,0.001]
[1721396480422,0.61616874,64965.0,64964.0,0.001]
[1721396480631,0.99588661,64965.0,64964.0,0.001]
[1721396480844,0.15438174,64965.0,64949.0,0.307932]
[1721396481053,0.00083,64968.0,64964.0,0.14277479]
[1721396481054,0.003624,64968.0,64964.0,0.14277479]
[1721396481264,0.00083,64968.0,64967.0,0.461772]
[1721396481475,0.00083,64968.0,64967.0,1.00110174]
[1721396481696,0.00083,64968.0,64967.0,1.30894974]
[1721396482343,0.00083,64968.0,64967.0,1.50067119]
[1721396482577,0.00083,64968.0,64967.0,1.30894974]
[1721396482785,0.00083,64968.0,64967.0,1.68239774]
[1721396482997,0.00083,64968.0,64967.0,1.37454974]
[1721396483420,0.00083,64968.0,64967.0,1.56625519]
[1721396483631,0.00083,64968.0,64967.0,1.68239774]
[1721396483849,0.00083,64968.0,64967.0,1.2981157]
[1721396484055,0.00083,64968.0,64967.0,1.06670174]
[1721396484288,0.00083,64968.0,64967.0,1.07570174]
[1721396484499,0.00083,64968.0,64967.0,0.305624]
[1721396484706,0.00083,64968.0,64967.0,0.0746]
[1721396484911,0.00083,64968.0,64967.0,0.01]
[1721396485169,0.00083,64968.0,64964.0,0.07717479]
[1721396485385,0.00083,64968.0,64964.0,0.23110579]
[1721396485602,0.00083,64968.0,64960.0,0.0651]
[1721396485819,0.00083,64968.0,64948.0,0.07717479]
[1721396485820,0.15521174,64968.0,64949.0,0.138]
[1721396486032,0.15521174,64968.0,64955.0,0.07717479]
[1721396486033,0.00083,64968.0,64955.0,0.07717479]
[1721396486243,0.00083,64968.0,64962.0,0.07717479]
[1721396486487,0.153927,64966.0,64955.0,0.07717479]
[1721396486698,0.00083,64968.0,64962.0,0.07717479]
[1721396486902,0.00083,64968.0,64967.0,0.153924]
[1721396487113,0.00083,64968.0,64967.0,0.76962]
[1721396487316,0.00083,64968.0,64967.0,1.18982094]
[1721396487527,0.00083,64968.0,64967.0,1.49766894]
[1721396487993,0.00083,64968.0,64967.0,1.80551694]
[1721396488229,0.00083,64968.0,64967.0,1.49766894]
[1721396488450,0.0016,64969.0,64968.0,1.07745]
[1721396488665,0.0016,64969.0,64968.0,1.35965094]
[1721396489515,0.0016,64969.0,64968.0,1.0517919]
[1721396489735,0.0016,64969.0,64968.0,1.3596349]
[1721396489941,0.0016,64969.0,64968.0,1.35963408]
[1721396490150,0.0016,64969.0,64968.0,1.05179108]
[1721396491221,0.0016,64969.0,64968.0,0.12880234]
[1721396491437,0.0016,64969.0,64968.0,0.001]
[1721396491886,0.0016,64969.0,64963.0,0.14337479]
[1721396492081,0.0016,64969.0,64968.0,0.003]
[1721396493526,0.004394,64969.0,64968.0,0.003]
[1721396493756,0.0016,64969.0,64968.0,0.003]
[1721396494201,0.0016,64969.0,64957.0,0.0627]
[1721396494416,0.156717,64968.0,64958.0,0.12784297]
[1721396494631,0.153927,64966.0,64959.0,0.12784297]
[1721396494843,0.0016,64969.0,64951.0,0.083]
[1721396494844,0.153939,64961.0,64951.0,0.083]
[1721396495057,0.307867,64963.0,64951.0,0.083]
[1721396495271,0.0016,64969.0,64951.0,0.083]
[1721396495485,0.0016,64969.0,64962.0,0.07717479]
[1721396495486,0.153929,64965.0,64962.0,0.07717479]
[1721396495691,0.30785,64967.0,64962.0,0.07717479]
[1721396495692,0.15438174,64964.0,64962.0,0.07717479]
[1721396495927,0.30831374,64964.0,64962.0,0.07717479]
[1721396496140,0.30831374,64964.0,64959.0,0.001]
[1721396496141,0.153939,64961.0,64959.0,0.001]
[1721396496345,0.0016,64969.0,64959.0,0.001]
[1721396496346,0.45532174,64960.0,64959.0,0.001]
[1721396496565,0.30138174,64960.0,64959.0,0.001]
[1721396496775,0.30832174,64960.0,64959.0,0.001]
[1721396496987,0.15438174,64960.0,64959.0,0.001]
[1721396497198,0.0652,64967.0,64959.0,0.001]
[1721396497199,0.06741,64967.0,64959.0,0.001]
[1721396497411,0.15438174,64966.0,64962.0,0.07717479]
[1721396497844,0.15438174,64966.0,64959.0,0.001]
[1721396498058,0.15394,64960.0,64959.0,0.001]
[1721396498277,0.15394,64960.0,64943.0,0.46304871]
[1721396498278,0.153962,64951.0,64943.0,0.46304871]
[1721396498502,0.307909,64955.0,64943.0,0.46304871]
[1721396498730,0.307909,64955.0,64941.0,0.07717479]
[1721396498731,0.153962,64951.0,64949.0,0.07717479]
[1721396499178,0.15438174,64954.0,64949.0,0.07717479]
[1721396500069,0.307882,64960.0,64949.0,0.07717479]
[1721396500317,0.307882,64960.0,64956.0,0.07717479]
[1721396500318,0.15438174,64960.0,64956.0,0.07717479]
[1721396500589,0.389644,64968.0,64957.0,0.12788142]
[1721396500800,0.46223474,64966.0,64958.0,0.12788142]
[1721396501012,0.15438174,64966.0,64956.0,0.07717479]
[1721396501227,0.00221,64967.0,64963.0,0.07717479]
[1721396501498,0.00221,64967.0,64964.0,0.12784985]
[1721396501757,0.00221,64967.0,64963.0,0.07717479]
[1721396501758,0.00221,64967.0,64965.0,0.12784985]
[1721396502008,0.00221,64967.0,64956.0,0.24935358]
[1721396502009,0.46443974,64967.0,64956.0,0.07717479]
[1721396502253,0.46443974,64967.0,64949.0,0.38610679]
[1721396502254,0.15438174,64966.0,64957.0,0.12786195]
[1721396502502,0.15438174,64966.0,64949.0,0.07817479]
[1721396502503,0.153951,64956.0,64949.0,0.07817479]
[1721396502752,0.00221,64967.0,64950.0,0.12787409]
[1721396502991,0.156136,64967.0,64960.0,0.07717479]
[1721396503235,0.61616074,64966.0,64965.0,0.001]
[1721396503469,0.92401374,64966.0,64965.0,0.12787409]
[1721396503942,0.92401374,64966.0,64949.0,0.07717479]
[1721396503943,0.153954,64955.0,64949.0,0.07717479]
[1721396504167,0.153946,64958.0,64949.0,0.07717479]
[1721396504419,0.153952,64956.0,64950.0,0.12787313]
[1721396504655,0.153952,64956.0,64951.0,0.12787313]
[1721396504656,0.15438174,64956.0,64951.0,0.12787313]
[1721396504872,0.15438174,64956.0,64952.0,0.12787313]
[1721396504873,0.30833274,64956.0,64952.0,0.12787313]
[1721396505079,0.23175674,64965.0,64953.0,0.12787313]
[1721396505299,0.15438174,64964.0,64957.0,0.07717479]
[1721396505505,0.15438174,64964.0,64958.0,0.12787313]
[1721396505506,0.153943,64959.0,64958.0,0.12787313]
[1721396505733,0.307881,64961.0,64958.0,0.12787313]
[1721396505734,0.15394,64961.0,64958.0,0.12787313]
[1721396505972,0.15394,64961.0,64957.0,0.07717479]
[1721396505973,0.15438174,64961.0,64957.0,0.07717479]
[1721396506218,0.153941,64960.0,64957.0,0.07717479]
[1721396506459,0.153941,64960.0,64952.0,0.001]
[1721396506460,0.15395,64957.0,64952.0,0.001]
[1721396506708,0.15395,64957.0,64953.0,0.12787203]
[1721396506709,0.36971,64954.0,64953.0,0.12787203]
[1721396506937,0.36971,64954.0,64935.0,0.0771]
[1721396506938,0.15396,64952.0,64943.0,0.46304871]
[1721396507181,0.307916,64953.0,64939.0,0.67703871]
[1721396507182,0.153957,64953.0,64939.0,0.67703871]
[1721396507435,0.28130605,64954.0,64948.0,0.07717479]
[1721396507436,0.21914325,64952.0,64948.0,0.07717479]
[1721396507680,0.06518325,64951.0,64948.0,0.07717479]
[1721396507933,0.06518325,64951.0,64939.0,0.06]
[1721396508224,0.06518325,64951.0,64942.0,0.12789005]
[1721396508472,0.153978,64945.0,64933.0,0.00018538]
[1721396508705,0.22870494,64950.0,64941.0,0.07717479]
[1721396508706,0.15438174,64950.0,64941.0,0.07717479]
[1721396508949,0.06518899,64949.0,64942.0,0.12788611]
[1721396509196,0.15438174,64948.0,64941.0,0.07717479]
[1721396509696,0.369714,64954.0,64941.0,0.07717479]
[1721396509697,0.0618,64954.0,64941.0,0.07717479]
[1721396509942,0.30788,64961.0,64953.0,0.07717479]
[1721396510184,0.15438174,64961.0,64953.0,0.07717479]
[1721396510427,0.21909566,64960.0,64953.0,0.07717479]
[1721396510665,0.153941,64960.0,64953.0,0.07717479]
[1721396510901,0.21909957,64959.0,64953.0,0.07717479]
[1721396511142,0.21909957,64959.0,64944.0,0.0818]
[1721396511143,0.153948,64957.0,64944.0,0.0818]
[1721396511378,0.37305057,64958.0,64944.0,0.0818]
[1721396511379,0.06515557,64956.0,64948.0,0.07717479]
[1721396511614,0.21910357,64957.0,64948.0,0.07717479]
[1721396512065,0.06515557,64956.0,64948.0,0.07717479]
[1721396512067,0.2735,64955.0,64934.0,0.31297579]
[1721396512318,0.2735,64955.0,64941.0,0.07717479]
[1721396512319,0.307916,64953.0,64941.0,0.07717479]
[1721396512554,0.153964,64951.0,64941.0,0.07717479]
[1721396512793,0.307897,64957.0,64941.0,0.07717479]
[1721396512794,0.2735,64962.0,64950.0,0.13937479]
[1721396513035,0.00221,64967.0,64957.0,0.07717479]
[1721396513288,0.06516705,64966.0,64964.0,0.07717479]
[1721396513554,0.00221,64967.0,64966.0,0.153926]
[1721396513832,0.00221,64967.0,64966.0,0.28177296]
[1721396514064,0.00221,64967.0,64966.0,0.12784696]
[1721396514554,0.00221,64967.0,64964.0,0.001]
[1721396514804,0.00221,64967.0,64965.0,0.12784583]
[1721396515044,0.00221,64967.0,64966.0,0.58962227]
[1721396515280,0.00221,64967.0,64966.0,0.89747527]
[1721396515991,0.00221,64967.0,64966.0,0.769632]
[1721396516209,0.00221,64967.0,64966.0,0.58960372]
[1721396516433,0.01021,64967.0,64966.0,0.59060372]
[1721396517072,0.01021,64967.0,64966.0,0.28375072]
[1721396517289,0.01021,64967.0,64966.0,0.12982472]
[1721396517498,0.01021,64967.0,64966.0,0.002]
[1721396517705,0.164134,64967.0,64966.0,0.002]
[1721396517915,1.04663586,64967.0,64966.0,0.002]